fUSD/lending_fUSD_20250109
["ID","MTS","AMOUNT","RATE_DAILY","PERIOD"]
[348220298,1736398244686,-593.52884189,9.899e-05,2]
[348220299,1736398244695,-500.0,9.899e-05,2]
[348220300,1736398244704,-500.0,9.899e-05,2]
[348220301,1736398244712,-500.0,9.899e-05,2]
[348220302,1736398244722,-500.0,9.899e-05,2]
[348220303,1736398244731,-500.0,9.899e-05,2]
[348220304,1736398244740,-531.89088967,9.899e-05,2]
[348220305,1736398244750,-500.0,9.899e-05,2]
[348220306,1736398244759,-501.09998976,9.899e-05,2]
[348220307,1736398244769,-500.0,9.899e-05,2]
[348220308,1736398244778,-500.0,9.899e-05,2]
[348220309,1736398244787,-500.0,9.899e-05,2]
[348220310,1736398244797,-500.54237802,9.899e-05,2]
[348220311,1736398244807,-500.0,9.899e-05,2]
[348220312,1736398244816,-500.0,9.899e-05,2]
[348220313,1736398244826,-411.23976266,9.899e-05,2]
[348220314,1736398244836,-500.0,9.899e-05,2]
[348220315,1736398244847,-500.0,9.899e-05,2]
[348220316,1736398244857,-777.24,9.899e-05,2]
[348220317,1736398244867,-501.10507553,9.899e-05,2]
[348220318,1736398244877,-500.0,9.899e-05,2]
[348220319,1736398244886,-500.0,9.899e-05,2]
[348220320,1736398244896,-500.0,9.899e-05,2]
[348220321,1736398244906,-500.0,9.899e-05,2]
[348220322,1736398244916,-561.54155114,9.899e-05,2]
[348220323,1736398244926,-500.0,9.899e-05,2]
[348220324,1736398244935,-500.0,9.899e-05,2]
[348220325,1736398244945,-500.0,9.899e-05,2]
[348220326,1736398244955,-501.37500858,9.899e-05,2]
[348220327,1736398244965,-500.0,9.899e-05,2]
[348220328,1736398244974,-504.42470318,9.899e-05,2]
[348220329,1736398244983,-500.0,9.899e-05,2]
[348220330,1736398244993,-500.0,9.899e-05,2]
[348220331,1736398245003,-500.0,9.899e-05,2]
[348220332,1736398245013,-500.0,9.899e-05,2]
[348220333,1736398245023,-500.0,9.899e-05,2]
[348220334,1736398245032,-1099.64,9.899e-05,2]
[348220335,1736398245041,-500.0,9.899e-05,2]
[348220336,1736398245051,-500.0,9.899e-05,2]
[348220337,1736398245060,-500.0,9.899e-05,2]
[348220338,1736398245070,-500.0,9.899e-05,2]
[348220339,1736398245079,-500.0,9.899e-05,2]
[348220340,1736398245089,-625.9329331,9.899e-05,2]
[348220341,1736398245100,-2500.0,9.9e-05,2]
[348220342,1736398245111,-500.98061561,9.998e-05,2]
[348220343,1736398245120,-500.0,9.998e-05,2]
[348220344,1736398245129,-1183.5,9.999e-05,2]
[348220345,1736398245139,-942.01,9.999e-05,2]
[348220346,1736398245148,-2163.49,9.999e-05,2]
[348220347,1736398245158,-1797.54,9.999e-05,2]
[348220348,1736398245167,-500.0,9.999e-05,2]
[348220349,1736398245176,-527.44535832,9.999e-05,2]
[348220350,1736398245185,-500.0,9.999e-05,2]
[348220351,1736398245196,-500.0,9.999e-05,2]
[348220352,1736398245206,-500.0,9.999e-05,2]
[348220353,1736398245215,-500.0,9.999e-05,2]
[348220354,1736398245224,-986.78,9.999e-05,2]
[348220355,1736398245234,-500.0,9.999e-05,2]
[348220356,1736398245243,-500.0,9.999e-05,2]
[348220357,1736398245252,-500.0,9.999e-05,2]
[348220358,1736398245262,-500.0,9.999e-05,2]
[348220359,1736398245272,-500.0,9.999e-05,2]
[348220360,1736398245282,-417994.23625566,0.0001,2]
[348220361,1736398245559,-1000.7,0.0001,2]
[348220362,1736398245571,-752.76793986,0.0001,2]
[348220363,1736398245592,-1069.00829095,0.0001,2]
[348220364,1736398245613,-96350.64222392,0.0001,2]
[348220365,1736398245634,-500.0,9.899e-05,2]
[348220366,1736398245644,-56.25686365,0.0001,2]
[348220367,1736398245656,-833.68004119,0.0001,2]
[348220368,1736398245668,-479919.49999996,0.0001,2]
[348220369,1736398245680,-7388.43888594,0.0001,2]
[348220370,1736398245699,-18637.66840363,0.0001,2]
[348220371,1736398245718,-6389.48044361,0.0001,2]
[348220372,1736398245730,-999.99998538,0.0001,2]
[348220373,1736398245742,-1885.24001276,0.0001,2]
[348220375,1736398246255,-256.85250795,9.898e-05,2]
[348220376,1736398246268,-243.73737928,9.898e-05,2]
[348220377,1736398246278,-500.0,9.898e-05,2]
[348220378,1736398246288,-500.0,9.898e-05,2]
[348220379,1736398246298,-500.0,9.898e-05,2]
[348220380,1736398246307,-501.35895351,9.898e-05,2]
[348220381,1736398246317,-500.0,9.898e-05,2]
[348220382,1736398246327,-500.0,9.898e-05,2]
[348220383,1736398246338,-500.0,9.899e-05,2]
[348220384,1736398246349,-501.73826115,9.999e-05,2]
[348220385,1736398246360,-478.78441746,9.999e-05,2]
[348220386,1736398246398,-21.21558254,9.999e-05,2]
[348220387,1736398246409,-39468.73849715,0.0001,2]
[348220388,1736398246423,-311.184893,0.0001,2]
[348220389,1736398246435,-2544.61658396,0.0001,2]
[348220390,1736398246446,-6351.82275769,0.0001,2]
[348220391,1736398246467,-993.34986515,0.0001,2]
[348220392,1736398246479,-6255203.44168532,0.0001,2]
[348220393,1736398246489,-3119.26846451,0.0001,2]
[348220394,1736398246500,-1687.37422237,0.0001,2]
[348220395,1736398246511,-3012.7048965,0.0001,2]
[348220396,1736398246521,-2837686.95887804,0.0001,2]
[348220397,1736398246530,-176.91603586,0.0001,2]
[348220398,1736398246540,-150.0,0.0001,2]
[348220399,1736398246550,-154.01204402,0.0001,2]
[348220400,1736398246559,-154.01204401,0.0001,2]
[348220401,1736398246569,-154.01204401,0.0001,2]
[348220402,1736398246579,-154.01204401,0.0001,2]
[348220403,1736398246589,-154.01204401,0.0001,2]
[348220404,1736398246600,-154.01204401,0.0001,2]
[348220405,1736398246610,-157.29606996,0.0001,2]
[348220406,1736398246619,-154.01204401,0.0001,2]
[348220407,1736398246629,-154.01204401,0.0001,2]
[348220408,1736398246639,-3000.0,0.0001,2]
[348220409,1736398246649,-291.6859584,0.0001,2]
[348220410,1736398246658,-1091.8673637,0.0001,2]
[348220411,1736398246668,-1422.67652279,0.0001,2]
[348220412,1736398246677,-1422.67652279,0.0001,2]
[348220413,1736398246686,-1422.67652279,0.0001,2]
[348220414,1736398246695,-8295.6144202,0.0001009,2]
[348220415,1736398246704,-14489.1988527,0.0001009,2]
[348220416,1736398246714,-1000.0,0.00010097,2]
[348220417,1736398246723,-566.26,0.00010108,2]
[348220418,1736398246733,-4758.36916317,0.00010134,4]
[348220419,1736398246742,-10831.37350855,0.00010134,4]
[348220420,1736398246752,-500.0,0.00010136,2]
[348220421,1736398246762,-153.54,0.00010137,2]
[348220422,1736398246771,-157.2,0.00010137,2]
[348220423,1736398246781,-429.73662246,0.00010152,2]
[348220424,1736398246790,-517.85679445,0.00010172,2]
[348220425,1736398246800,-500.0,0.00010172,2]
[348220426,1736398246810,-500.0,0.00010172,2]
[348220427,1736398246820,-500.0,0.00010172,2]
[348220428,1736398246831,-500.0,0.00010172,2]
[348220429,1736398247010,-500.0,0.00010172,2]
[348220430,1736398247020,-500.0,0.00010172,2]
[348220431,1736398247030,-500.0,0.00010172,2]
[348220432,1736398247039,-500.0,0.00010172,2]
[348220433,1736398247050,-500.0,0.00010172,2]
[348220434,1736398247060,-500.0,0.00010172,2]
[348220435,1736398247069,-500.0,0.00010172,2]
[348220436,1736398247079,-500.0,0.00010172,2]
[348220437,1736398247088,-500.0,0.00010172,2]
[348220438,1736398247098,-500.0,0.00010172,2]
[348220439,1736398247107,-500.0,0.00010172,2]
[348220440,1736398247117,-500.0,0.00010172,2]
[348220441,1736398247127,-500.0,0.00010172,2]
[348220442,1736398247136,-614.23,0.00010172,2]
[348220443,1736398247145,-500.0,0.00010172,2]
[348220444,1736398247155,-500.0,0.00010172,2]
[348220445,1736398247164,-500.0,0.00010172,2]
[348220446,1736398247174,-500.0,0.00010172,2]
[348220447,1736398247183,-500.0,0.00010172,2]
[348220448,1736398247193,-500.0,0.00010172,2]
[348220449,1736398247202,-500.0,0.00010172,2]
[348220450,1736398247211,-500.0,0.00010172,2]
[348220451,1736398247221,-500.0,0.00010172,2]
[348220452,1736398247231,-500.0,0.00010172,2]
[348220453,1736398247240,-500.0,0.00010172,2]
[348220454,1736398247249,-500.0,0.00010172,2]
[348220455,1736398247259,-500.0,0.00010172,2]
[348220456,1736398247269,-628.01,0.00010172,2]
[348220457,1736398247279,-500.0,0.00010172,2]
[348220458,1736398247288,-500.0,0.00010172,2]
[348220459,1736398247298,-500.0,0.00010172,2]
[348220460,1736398247308,-500.0,0.00010172,2]
[348220461,1736398247318,-500.0,0.00010172,2]
[348220462,1736398247327,-500.0,0.00010172,2]
[348220463,1736398247337,-500.0,0.00010172,2]
[348220464,1736398247347,-500.0,0.00010172,2]
[348220465,1736398247357,-500.0,0.00010172,2]
[348220466,1736398247366,-500.0,0.00010172,2]
[348220467,1736398247376,-500.0,0.00010172,2]
[348220468,1736398247385,-500.0,0.00010172,2]
[348220469,1736398247394,-500.0,0.00010172,2]
[348220470,1736398247403,-500.0,0.00010172,2]
[348220471,1736398247412,-500.0,0.00010172,2]
[348220472,1736398247421,-351.66,0.00010172,2]
[348220473,1736398247430,-500.0,0.00010172,2]
[348220474,1736398247439,-500.0,0.00010172,2]
[348220475,1736398247449,-500.0,0.00010172,2]
[348220476,1736398247458,-500.0,0.00010172,2]
[348220477,1736398247468,-500.0,0.00010172,2]
[348220478,1736398247477,-502.08275398,0.00010172,2]
[348220479,1736398247486,-500.0,0.00010172,2]
[348220480,1736398247495,-501.90840369,0.00010172,2]
[348220481,1736398247509,-500.0,0.00010172,2]
[348220482,1736398247518,-500.0,0.00010172,2]
[348220483,1736398247527,-500.0,0.00010172,2]
[348220484,1736398247537,-500.0,0.00010172,2]
[348220485,1736398247546,-586.57,0.00010172,2]
[348220486,1736398247556,-264.707363,0.00010172,2]
[348220487,1736398247566,-500.0,0.00010172,2]
[348220488,1736398247575,-500.0,0.00010172,2]
[348220489,1736398247585,-500.0,0.00010172,2]
[348220490,1736398247595,-506.15414779,0.00010172,2]
[348220491,1736398247606,-500.0,0.00010172,2]
[348220492,1736398247616,-500.0,0.00010172,2]
[348220493,1736398247626,-500.0,0.00010172,2]
[348220494,1736398247636,-500.0,0.00010172,2]
[348220495,1736398247646,-500.0,0.00010172,2]
[348220496,1736398247656,-891.57,0.00010172,2]
[348220497,1736398247666,-390.10626798,0.00010172,2]
[348220498,1736398247675,-500.0,0.00010172,2]
[348220499,1736398247685,-500.0,0.00010172,2]
[348220500,1736398247695,-2800.55,0.00010172,2]
[348220501,1736398247705,-500.0,0.00010172,2]
[348220502,1736398247715,-502.06503944,0.00010172,2]
[348220503,1736398247724,-500.0,0.00010172,2]
[348220504,1736398247734,-500.0,0.00010172,2]
[348220505,1736398247744,-507.3711613,0.00010172,2]
[348220506,1736398247753,-500.0,0.00010172,2]
[348220507,1736398247763,-500.0,0.00010172,2]
[348220508,1736398247773,-500.0,0.00010172,2]
[348220509,1736398247782,-500.0,0.00010172,2]
[348220510,1736398247792,-153.84,0.00010172,2]
[348220511,1736398247802,-500.0,0.00010172,2]
[348220512,1736398247812,-500.0,0.00010172,2]
[348220513,1736398247822,-500.0,0.00010172,2]
[348220514,1736398247832,-500.0,0.00010172,2]
[348220515,1736398247844,-596.27,0.00010172,2]
[348220516,1736398247855,-500.0,0.00010172,2]
[348220517,1736398247865,-500.0,0.00010172,2]
[348220518,1736398247875,-501.76245435,0.00010172,2]
[348220519,1736398247884,-500.0,0.00010172,2]
[348220520,1736398247894,-500.0,0.00010172,2]
[348220521,1736398247903,-500.0,0.00010172,2]
[348220522,1736398247913,-591.62,0.00010172,2]
[348220523,1736398247923,-500.0,0.00010172,2]
[348220524,1736398247932,-500.0,0.00010172,2]
[348220525,1736398247942,-500.0,0.00010172,2]
[348220526,1736398247952,-500.0,0.00010172,2]
[348220527,1736398247962,-500.0,0.00010172,2]
[348220528,1736398247972,-500.0,0.00010172,2]
[348220529,1736398247981,-500.0,0.00010172,2]
[348220530,1736398247990,-501.8193211,0.00010172,2]
[348220531,1736398248000,-500.0,0.00010172,2]
[348220532,1736398248010,-500.0,0.00010172,2]
[348220533,1736398248020,-500.0,0.00010172,2]
[348220534,1736398248029,-500.0,0.00010172,2]
[348220535,1736398248039,-500.0,0.00010172,2]
[348220536,1736398248049,-500.0,0.00010172,2]
[348220537,1736398248059,-500.0,0.00010172,2]
[348220538,1736398248068,-500.0,0.00010172,2]
[348220539,1736398248078,-500.0,0.00010172,2]
[348220540,1736398248088,-500.0,0.00010172,2]
[348220541,1736398248099,-500.0,0.00010172,2]
[348220542,1736398248110,-500.0,0.00010172,2]
[348220543,1736398248120,-500.0,0.00010172,2]
[348220544,1736398248130,-500.0,0.00010172,2]
[348220545,1736398248140,-500.0,0.00010172,2]
[348220546,1736398248150,-511.36,0.00010172,2]
[348220547,1736398248160,-500.0,0.00010172,2]
[348220548,1736398248170,-501.22075627,0.00010172,2]
[348220549,1736398248181,-2330.18,0.00010172,2]
[348220550,1736398248190,-500.0,0.00010172,2]
[348220551,1736398248200,-500.0,0.00010172,2]
[348220552,1736398248211,-500.0,0.00010172,2]
[348220553,1736398248221,-500.0,0.00010172,2]
[348220554,1736398248230,-599.39,0.00010172,2]
[348220555,1736398248240,-500.0,0.00010172,2]
[348220556,1736398248250,-500.0,0.00010172,2]
[348220557,1736398248259,-500.0,0.00010172,2]
[348220558,1736398248269,-500.0,0.00010172,2]
[348220559,1736398248278,-500.0,0.00010172,2]
[348220560,1736398248288,-500.0,0.00010172,2]
[348220561,1736398248298,-500.0,0.00010172,2]
[348220562,1736398248307,-500.0,0.00010172,2]
[348220563,1736398248318,-501.16727073,0.00010172,2]
[348220564,1736398248328,-500.0,0.00010172,2]
[348220565,1736398248338,-500.0,0.00010172,2]
[348220566,1736398248349,-500.0,0.00010172,2]
[348220567,1736398248358,-500.0,0.00010172,2]
[348220568,1736398248368,-500.0,0.00010172,2]
[348220569,1736398248378,-500.0,0.00010172,2]
[348220570,1736398248388,-500.0,0.00010172,2]
[348220571,1736398248398,-500.0,0.00010172,2]
[348220572,1736398248409,-500.0,0.00010172,2]
[348220573,1736398248419,-500.0,0.00010172,2]
[348220574,1736398248428,-500.0,0.00010172,2]
[348220575,1736398248438,-500.0,0.00010172,2]
[348220576,1736398248448,-500.0,0.00010172,2]
[348220577,1736398248457,-500.0,0.00010172,2]
[348220578,1736398248467,-500.0,0.00010172,2]
[348220579,1736398248477,-500.0,0.00010172,2]
[348220580,1736398248487,-500.0,0.00010172,2]
[348220581,1736398248497,-500.0,0.00010172,2]
[348220582,1736398248509,-500.0,0.00010172,2]
[348220583,1736398248520,-500.0,0.00010172,2]
[348220584,1736398248530,-500.0,0.00010172,2]
[348220585,1736398248540,-1068.42,0.00010172,2]
[348220586,1736398248553,-500.0,0.00010172,2]
[348220587,1736398248562,-500.0,0.00010172,2]
[348220588,1736398248573,-500.0,0.00010172,2]
[348220589,1736398248584,-1291.41,0.00010172,2]
[348220590,1736398248595,-500.0,0.00010172,2]
[348220591,1736398248605,-501.6426377,0.00010172,2]
[348220592,1736398248614,-500.0,0.00010172,2]
[348220593,1736398248624,-500.0,0.00010172,2]
[348220594,1736398248634,-500.0,0.00010172,2]
[348220595,1736398248644,-500.0,0.00010172,2]
[348220596,1736398248654,-501.57416731,0.00010172,2]
[348220597,1736398248663,-500.0,0.00010172,2]
[348220598,1736398248674,-501.12646751,0.00010172,2]
[348220599,1736398248684,-500.0,0.00010172,2]
[348220600,1736398248694,-500.0,0.00010172,2]
[348220601,1736398248703,-404.48883076,0.00010172,2]
[348220602,1736398248712,-500.0,0.00010172,2]
[348220603,1736398248722,-542.94140953,0.00010172,2]
[348220604,1736398248732,-501.91431287,0.00010172,2]
[348220605,1736398248741,-500.0,0.00010172,2]
[348220606,1736398248751,-500.0,0.00010172,2]
[348220607,1736398248761,-707.4,0.00010172,2]
[348220608,1736398248770,-834.83,0.00010172,2]
[348220609,1736398248779,-500.0,0.00010172,2]
[348220610,1736398248789,-681.29,0.00010172,2]
[348220611,1736398248798,-500.0,0.00010172,2]
[348220612,1736398248807,-500.0,0.00010172,2]
[348220613,1736398248816,-500.0,0.00010172,2]
[348220614,1736398248826,-500.0,0.00010172,2]
[348220615,1736398248835,-500.0,0.00010172,2]
[348220616,1736398248845,-500.0,0.00010172,2]
[348220617,1736398248857,-500.0,0.00010172,2]
[348220618,1736398248866,-500.0,0.00010172,2]
[348220619,1736398248876,-500.0,0.00010172,2]
[348220620,1736398248886,-500.0,0.00010172,2]
[348220621,1736398248895,-500.0,0.00010172,2]
[348220622,1736398248905,-500.0,0.00010172,2]
[348220623,1736398248915,-500.0,0.00010172,2]
[348220624,1736398248925,-1775.27,0.00010172,2]
[348220625,1736398248935,-500.0,0.00010172,2]
[348220626,1736398248945,-500.0,0.00010172,2]
[348220627,1736398248955,-500.0,0.00010172,2]
[348220628,1736398248965,-500.0,0.00010172,2]
[348220629,1736398248975,-591.37540323,0.00010172,2]
[348220630,1736398248985,-500.0,0.00010172,2]
[348220631,1736398248994,-500.0,0.00010172,2]
[348220632,1736398249003,-500.0,0.00010172,2]
[348220633,1736398249013,-500.0,0.00010172,2]
[348220634,1736398249023,-500.0,0.00010172,2]
[348220635,1736398249033,-500.0,0.00010172,2]
[348220636,1736398249043,-500.0,0.00010172,2]
[348220637,1736398249053,-500.0,0.00010172,2]
[348220638,1736398249062,-500.0,0.00010172,2]
[348220639,1736398249072,-500.0,0.00010172,2]
[348220640,1736398249081,-500.0,0.00010172,2]
[348220641,1736398249091,-500.0,0.00010172,2]
[348220642,1736398249101,-500.0,0.00010172,2]
[348220643,1736398249110,-500.0,0.00010172,2]
[348220644,1736398249119,-500.0,0.00010172,2]
[348220645,1736398249129,-500.0,0.00010172,2]
[348220646,1736398249138,-454.98434993,0.00010172,2]
[348220647,1736398249148,-500.0,0.00010172,2]
[348220648,1736398249157,-500.0,0.00010172,2]
[348220649,1736398249167,-500.0,0.00010172,2]
[348220650,1736398249176,-500.0,0.00010172,2]
[348220651,1736398249186,-500.0,0.00010172,2]
[348220652,1736398249195,-500.0,0.00010172,2]
[348220653,1736398249205,-500.0,0.00010172,2]
[348220654,1736398249214,-500.0,0.00010172,2]
[348220655,1736398249224,-500.0,0.00010172,2]
[348220656,1736398249233,-536.88,0.00010172,2]
[348220657,1736398249243,-500.0,0.00010172,2]
[348220658,1736398249252,-500.0,0.00010172,2]
[348220659,1736398249262,-500.0,0.00010172,2]
[348220660,1736398249271,-500.0,0.00010172,2]
[348220661,1736398249280,-500.0,0.00010172,2]
[348220662,1736398249290,-500.0,0.00010172,2]
[348220663,1736398249299,-500.0,0.00010172,2]
[348220664,1736398249308,-500.0,0.00010172,2]
[348220665,1736398249317,-500.0,0.00010172,2]
[348220666,1736398249326,-500.0,0.00010172,2]
[348220667,1736398249336,-500.0,0.00010172,2]
[348220668,1736398249345,-500.0,0.00010172,2]
[348220669,1736398249356,-500.0,0.00010172,2]
[348220670,1736398249366,-974.03,0.00010172,2]
[348220671,1736398249375,-500.0,0.00010172,2]
[348220672,1736398249385,-500.0,0.00010172,2]
[348220673,1736398249395,-500.0,0.00010172,2]
[348220674,1736398249405,-500.0,0.00010172,2]
[348220675,1736398249414,-500.0,0.00010172,2]
[348220676,1736398249424,-500.0,0.00010172,2]
[348220677,1736398249433,-500.0,0.00010172,2]
[348220678,1736398249443,-500.0,0.00010172,2]
[348220679,1736398249452,-500.0,0.00010172,2]
[348220680,1736398249462,-500.0,0.00010172,2]
[348220681,1736398249472,-500.0,0.00010172,2]
[348220682,1736398249482,-500.0,0.00010172,2]
[348220683,1736398249492,-500.0,0.00010172,2]
[348220684,1736398249506,-500.0,0.00010172,2]
[348220685,1736398249515,-500.0,0.00010172,2]
[348220686,1736398249524,-500.0,0.00010172,2]
[348220687,1736398249534,-500.0,0.00010172,2]
[348220688,1736398249544,-502.28866342,0.00010172,2]
[348220689,1736398249553,-500.0,0.00010172,2]
[348220690,1736398249564,-500.0,0.00010172,2]
[348220691,1736398249574,-500.0,0.00010172,2]
[348220692,1736398249584,-500.0,0.00010172,2]
[348220693,1736398249593,-500.0,0.00010172,2]
[348220694,1736398249603,-500.0,0.00010172,2]
[348220695,1736398249613,-500.0,0.00010172,2]
[348220696,1736398249622,-991.83,0.00010172,2]
[348220697,1736398249632,-500.0,0.00010172,2]
[348220698,1736398249641,-500.0,0.00010172,2]
[348220699,1736398249651,-501.96613158,0.00010172,2]
[348220700,1736398249660,-500.0,0.00010172,2]
[348220701,1736398249669,-500.0,0.00010172,2]
[348220702,1736398249679,-548.99593088,0.00010172,2]
[348220703,1736398249688,-500.0,0.00010172,2]
[348220704,1736398249697,-502.32742071,0.00010172,2]
[348220705,1736398249706,-500.0,0.00010172,2]
[348220706,1736398249715,-500.0,0.00010172,2]
[348220707,1736398249724,-205.32223002,0.00010173,2]
[348220708,1736398249734,-514.05509326,0.00010173,2]
[348220709,1736398249743,-500.0,0.00010173,2]
[348220710,1736398249753,-506.86623775,0.00010173,2]
[348220711,1736398249762,-500.0,0.00010173,2]
[348220712,1736398249771,-622.77877006,0.00010173,2]
[348220713,1736398249780,-500.0,0.00010173,2]
[348220714,1736398249790,-500.0,0.00010173,2]
[348220715,1736398249799,-500.0,0.00010173,2]
[348220716,1736398249808,-500.0,0.00010173,2]
[348220717,1736398249818,-500.0,0.00010173,2]
[348220718,1736398249827,-500.0,0.00010173,2]
[348220719,1736398249836,-500.0,0.00010173,2]
[348220720,1736398249846,-587.54725706,0.00010173,2]
[348220721,1736398249856,-500.0,0.00010173,2]
[348220722,1736398249865,-508.72034489,0.00010173,2]
[348220723,1736398249875,-625.69563402,0.00010173,2]
[348220724,1736398249884,-296.06491932,0.00010173,2]
[348220725,1736398249893,-390.26731615,0.00010173,2]
[348220726,1736398249902,-500.0,0.00010173,2]
[348220727,1736398249912,-504.42167572,0.00010173,2]
[348220728,1736398249922,-502.73763418,0.00010173,2]
[348220729,1736398249931,-516.80274744,0.00010173,2]
[348220730,1736398249940,-500.0,0.00010173,2]
[348220731,1736398249950,-220.62720128,0.00010173,2]
[348220732,1736398249958,-500.0,0.00010173,2]
[348220733,1736398249967,-502.19923924,0.00010173,2]
[348220734,1736398249976,-604.13,0.00010173,2]
[348220735,1736398249985,-513.44790389,0.00010173,2]
[348220736,1736398249995,-601.27145143,0.00010173,2]
[348220737,1736398250004,-500.0,0.00010173,2]
[348220738,1736398250013,-500.0,0.00010173,2]
[348220739,1736398250023,-591.06542342,0.00010173,2]
[348220740,1736398250032,-503.30308342,0.00010173,2]
[348220741,1736398250042,-500.0,0.00010173,2]
[348220742,1736398250052,-500.0,0.00010173,2]
[348220743,1736398250061,-500.0,0.00010173,2]
[348220744,1736398250070,-500.0,0.00010173,2]
[348220745,1736398250079,-500.0,0.00010173,2]
[348220746,1736398250088,-500.0,0.00010173,2]
[348220747,1736398250097,-506.84332705,0.00010173,2]
[348220748,1736398250107,-500.0,0.00010173,2]
[348220749,1736398250116,-410.28605101,0.00010173,2]
[348220750,1736398250125,-503.18211822,0.00010173,2]
[348220751,1736398250134,-503.33462853,0.00010173,2]
[348220752,1736398250144,-500.0,0.00010173,2]
[348220753,1736398250154,-500.0,0.00010173,2]
[348220754,1736398250163,-500.0,0.00010173,2]
[348220755,1736398250172,-500.0,0.00010173,2]
[348220756,1736398250180,-503.31007717,0.00010173,2]
[348220757,1736398250190,-500.0,0.00010173,2]
[348220758,1736398250199,-503.69324661,0.00010173,2]
[348220759,1736398250208,-503.74187783,0.00010173,2]
[348220760,1736398250217,-500.0,0.00010173,2]
[348220761,1736398250226,-509.98666122,0.00010173,2]
[348220762,1736398250235,-580.96,0.00010173,2]
[348220763,1736398250244,-500.0,0.00010173,2]
[348220764,1736398250253,-500.0,0.00010173,2]
[348220765,1736398250262,-500.0,0.00010173,2]
[348220766,1736398250271,-582.69589797,0.00010173,2]
[348220767,1736398250280,-500.0,0.00010173,2]
[348220768,1736398250289,-500.0,0.00010173,2]
[348220769,1736398250298,-503.38772586,0.00010173,2]
[348220770,1736398250307,-500.68725825,0.00010173,2]
[348220771,1736398250316,-503.2974612,0.00010173,2]
[348220772,1736398250326,-500.91597606,0.00010173,2]
[348220773,1736398250335,-500.56707418,0.00010173,2]
[348220774,1736398250344,-500.0,0.00010173,2]
[348220775,1736398250507,-501.06791574,0.00010173,2]
[348220776,1736398250518,-500.77815786,0.00010173,2]
[348220777,1736398250528,-512.04129746,0.00010173,2]
[348220778,1736398250538,-500.78213096,0.00010173,2]
[348220779,1736398250547,-500.5995242,0.00010173,2]
[348220780,1736398250557,-500.84094224,0.00010173,2]
[348220781,1736398250566,-500.0,0.00010173,2]
[348220782,1736398250575,-500.41833619,0.00010173,2]
[348220783,1736398250584,-500.0,0.00010173,2]
[348220784,1736398250594,-500.0,0.00010173,2]
[348220785,1736398250604,-500.0,0.00010173,2]
[348220786,1736398250613,-500.63045244,0.00010173,2]
[348220787,1736398250622,-500.0,0.00010173,2]
[348220788,1736398250632,-500.0,0.00010173,2]
[348220789,1736398250642,-500.0,0.00010173,2]
[348220790,1736398250652,-500.48007366,0.00010173,2]
[348220791,1736398250661,-500.0,0.00010173,2]
[348220792,1736398250671,-501.98402373,0.00010173,2]
[348220793,1736398250680,-500.0,0.00010173,2]
[348220794,1736398250690,-500.0,0.00010173,2]
[348220795,1736398250700,-520.99789127,0.00010173,2]
[348220796,1736398250709,-500.0,0.00010173,2]
[348220797,1736398250718,-500.31264481,0.00010173,2]
[348220798,1736398250727,-500.0,0.00010173,2]